{"text_format":"1","workbook":"xlsx","n_sheets":4,"sheets":["2021","ورقة1","ورقة2","ورقة3"],"not_rendered":{"charts":0,"images":0,"macros":1,"external_links":1,"defined_names":1,"comments":0,"pivot_tables":0},"unopened":[],"bounds":{"document_bytes":16777216,"sheet_cells":100000,"rows_first":2000,"rows_last":500,"rows_between":2000,"halvings":0,"cell_chars":16384,"cell_head_chars":4096},"cells_cut":0,"cells_raw":0,"read":"whole","date_system":"1900"}

{"sheet":"2021","index":0,"n_rows":209,"n_cols":21,"rows_kept":209,"cut":false,"hidden":false,"merged":[[3,3,4,20],[5,0,8,0],[8,3,8,4],[8,6,8,7],[8,9,8,10],[8,12,8,13],[5,3,5,4],[5,1,8,1],[5,15,5,16],[5,12,5,13],[5,9,5,10],[5,6,5,7],[8,15,8,16],[5,20,6,20]]}
[]
[]
[]
[]
[]
[" ","اللقب والاسم",null,"الاحد",null,null,"الاثنين",null,null,"الثلاثاء",null,null,"الاربعاء",null,null,"الخميس",null,null,null,null,"عدد ايام العمل"]
[null,null,null,"الفترة الصباحية","الفترة المسائية",null,"الفترة الصباحية","الفترة المسائية",null,"الفترة الصباحية","الفترة المسائية",null,"الفترة الصباحية","الفترة المسائية",null,"الفترة الصباحية","الفترة المسائية"]
[null,null,null,"ص","م",null,"ص","م",null,"ص","م",null,"ص","م",null,"ص","م"]
[]
[1,"أبو البراء",null,"ص","م",null,null,"م",null,null,"م",null,null,"م",null,null,"م",{"$f":"COUNTIF(D8:Q8,\"ح\") + COUNTIF(D8:Q8,\"إ\") + COUNTIF(D8:Q8,\"ث\")+ COUNTIF(D8:Q8,\"ر\")+ COUNTIF(D8:Q8,\"خ\")","v":0},{"$f":"COUNTIF(D10:Q10,\"ص\") + COUNTIF(D10:Q10,\"م\")","v":6},null,{"$f":"S10/2","v":3}]
[2,"احمد",null,"ص",null,null,"ص",null,null,"ص",null,null,"ص",null,null,null,null,{"$f":"R10","v":0},{"$f":"COUNTIF(D11:Q11,\"ص\") + COUNTIF(D11:Q11,\"م\") + COUNTIF(D11:Q11,\"ي\")","v":4},null,{"$f":"S11/2","v":2}]
[3,"علي محمد علي",null," ","م",null,null,"م",null,null,"م",null,null,"م",null,null,"م",{"$f":"COUNTIF(D11:Q11,\"ح\") + COUNTIF(D11:Q11,\"إ\") + COUNTIF(D11:Q11,\"ث\")+ COUNTIF(D11:Q11,\"ر\")+ COUNTIF(D11:Q11,\"خ\")","v":0},{"$f":"COUNTIF(D12:Q12,\"ص\") + COUNTIF(D12:Q12,\"م\")","v":5},null,{"$f":"S12/2","v":2.5}]
[4,"نذار عيد",null,null,null,null,null,null,null,null,null,null,null,"م",null,"ص","م",{"$f":"R12","v":0},{"$f":"COUNTIF(D13:Q13,\"ص\") + COUNTIF(D13:Q13,\"م\") + COUNTIF(D13:Q13,\"ي\")","v":3},null,1.5]
[5,"هشام مرسي",null,null,null,null,null,null,null,null,null,null,null,null,null,null,null,{"$f":"COUNTIF(D13:Q13,\"ح\") + COUNTIF(D13:Q13,\"إ\") + COUNTIF(D13:Q13,\"ث\")+ COUNTIF(D13:Q13,\"ر\")+ COUNTIF(D13:Q13,\"خ\")","v":0},{"$f":"COUNTIF(D14:Q14,\"ص\") + COUNTIF(D14:Q14,\"م\")","v":0},null,0]
[6,"خبور خير",null,null,null,null,null,null,null,null,null,null,null,null,null,null,null,{"$f":"R14","v":0},{"$f":"COUNTIF(D15:Q15,\"ص\") + COUNTIF(D15:Q15,\"م\") + COUNTIF(D15:Q15,\"ي\")","v":0},null,0]
[7,"عبدالله",null,null,null,null,null,null,null,null,null,null,null,null,null,null,null,{"$f":"COUNTIF(D15:Q15,\"ح\") + COUNTIF(D15:Q15,\"إ\") + COUNTIF(D15:Q15,\"ث\")+ COUNTIF(D15:Q15,\"ر\")+ COUNTIF(D15:Q15,\"خ\")","v":0},{"$f":"COUNTIF(D16:Q16,\"ص\") + COUNTIF(D16:Q16,\"م\")","v":0},null,0]
[8,"عبد الله",null,null,null,null,null,null,null,null,null,null,null,null,null,null,null,{"$f":"R16","v":0},{"$f":"COUNTIF(D17:Q17,\"ص\") + COUNTIF(D17:Q17,\"م\") + COUNTIF(D17:Q17,\"ي\")","v":0},null,0]
[9,"عبد المعين",null,null,null,null,null,null,null,null,null,null,null,null,null,null,null,{"$f":"COUNTIF(D17:Q17,\"ح\") + COUNTIF(D17:Q17,\"إ\") + COUNTIF(D17:Q17,\"ث\")+ COUNTIF(D17:Q17,\"ر\")+ COUNTIF(D17:Q17,\"خ\")","v":0},{"$f":"COUNTIF(D18:Q18,\"ص\") + COUNTIF(D18:Q18,\"م\")","v":0},null,0]
[10,"واحد من الناس",null,null,null,null,null,null,null,null,null,null,null,null,null,null,null,{"$f":"R18","v":0},{"$f":"COUNTIF(D19:Q19,\"ص\") + COUNTIF(D19:Q19,\"م\") + COUNTIF(D19:Q19,\"ي\")","v":0},null,0]
[11,{"$f":"'[1]قائمة التلاميد'!B14","v":0},null,null,null,null,null,null,null,null," ",null,null,null,null,null,null,{"$f":"COUNTIF(D19:Q19,\"ح\") + COUNTIF(D19:Q19,\"إ\") + COUNTIF(D19:Q19,\"ث\")+ COUNTIF(D19:Q19,\"ر\")+ COUNTIF(D19:Q19,\"خ\")","v":0},{"$f":"COUNTIF(D20:Q20,\"ص\") + COUNTIF(D20:Q20,\"م\")","v":0},null,0]
[12,{"$f":"'[1]قائمة التلاميد'!B15","v":0},null,null,null,null,null,null,null,null,null,null,null,null,null,null,null,{"$f":"R20","v":0},{"$f":"COUNTIF(D21:Q21,\"ص\") + COUNTIF(D21:Q21,\"م\") + COUNTIF(D21:Q21,\"ي\")","v":0},null,0]
[13,{"$f":"'[1]قائمة التلاميد'!B16","v":0},null,null,null,null,null,null,null,null,null,null,null,null,null,null,null,{"$f":"COUNTIF(D21:Q21,\"ح\") + COUNTIF(D21:Q21,\"إ\") + COUNTIF(D21:Q21,\"ث\")+ COUNTIF(D21:Q21,\"ر\")+ COUNTIF(D21:Q21,\"خ\")","v":0},{"$f":"COUNTIF(D22:Q22,\"ص\") + COUNTIF(D22:Q22,\"م\")","v":0},null,0]
[14,{"$f":"'[1]قائمة التلاميد'!B17","v":0},null,null,null,null,null,null,null,null,null,null,null,null,null,null,null,{"$f":"R22","v":0},{"$f":"COUNTIF(D23:Q23,\"ص\") + COUNTIF(D23:Q23,\"م\") + COUNTIF(D23:Q23,\"ي\")","v":0},null,0]
[15,{"$f":"'[1]قائمة التلاميد'!B18","v":0},null,null,null,null,null,null,null,null,null,null,null,null,null,null,null,{"$f":"COUNTIF(D23:Q23,\"ح\") + COUNTIF(D23:Q23,\"إ\") + COUNTIF(D23:Q23,\"ث\")+ COUNTIF(D23:Q23,\"ر\")+ COUNTIF(D23:Q23,\"خ\")","v":0},{"$f":"COUNTIF(D24:Q24,\"ص\") + COUNTIF(D24:Q24,\"م\")","v":0},null,0]
[16,{"$f":"'[1]قائمة التلاميد'!B19","v":0},null,null,null,null,null,null,null,null,null,null,null,null,null,null,null,{"$f":"R24","v":0},{"$f":"COUNTIF(D25:Q25,\"ص\") + COUNTIF(D25:Q25,\"م\") + COUNTIF(D25:Q25,\"ي\")","v":0},null,0]
[17,{"$f":"'[1]قائمة التلاميد'!B20","v":0},null,null,null,null,null,null,null,null,null,null,null,null,null,null,null,{"$f":"COUNTIF(D25:Q25,\"ح\") + COUNTIF(D25:Q25,\"إ\") + COUNTIF(D25:Q25,\"ث\")+ COUNTIF(D25:Q25,\"ر\")+ COUNTIF(D25:Q25,\"خ\")","v":0},{"$f":"COUNTIF(D26:Q26,\"ص\") + COUNTIF(D26:Q26,\"م\")","v":0},null,0]
[18,{"$f":"'[1]قائمة التلاميد'!B21","v":0},null,null,null,null,null,null,null,null,null,null,null,null,null,null,null,{"$f":"R26","v":0},{"$f":"COUNTIF(D27:Q27,\"ص\") + COUNTIF(D27:Q27,\"م\") + COUNTIF(D27:Q27,\"ي\")","v":0},null,0]
[19,{"$f":"'[1]قائمة التلاميد'!B22","v":0},null,null,null,null,null,null,null,null,null,null,null,null,null,null,null,{"$f":"COUNTIF(D27:Q27,\"ح\") + COUNTIF(D27:Q27,\"إ\") + COUNTIF(D27:Q27,\"ث\")+ COUNTIF(D27:Q27,\"ر\")+ COUNTIF(D27:Q27,\"خ\")","v":0},{"$f":"COUNTIF(D28:Q28,\"ص\") + COUNTIF(D28:Q28,\"م\")","v":0},null,0]
[20,null,null,null,null,null,null,null,null,null,null,null,null,null,null,null,null,{"$f":"R28","v":0},{"$f":"COUNTIF(D29:Q29,\"ص\") + COUNTIF(D29:Q29,\"م\") + COUNTIF(D29:Q29,\"ي\")","v":0},null,0]
[21,null,null,null,null,null,null,null,null,null,null,null,null,null,null,null,null,{"$f":"COUNTIF(D29:Q29,\"ح\") + COUNTIF(D29:Q29,\"إ\") + COUNTIF(D29:Q29,\"ث\")+ COUNTIF(D29:Q29,\"ر\")+ COUNTIF(D29:Q29,\"خ\")","v":0},{"$f":"COUNTIF(D30:Q30,\"ص\") + COUNTIF(D30:Q30,\"م\")","v":0},null,0]
[22,null,null,null,null,null,null,null,null,null,null,null,null,null,null,null,null,{"$f":"R30","v":0},{"$f":"COUNTIF(D31:Q31,\"ص\") + COUNTIF(D31:Q31,\"م\") + COUNTIF(D31:Q31,\"ي\")","v":0},null,0]
[23,null,null,null,null,null,null,null,null,null,null,null,null,null,null,null,null,{"$f":"COUNTIF(D31:Q31,\"ح\") + COUNTIF(D31:Q31,\"إ\") + COUNTIF(D31:Q31,\"ث\")+ COUNTIF(D31:Q31,\"ر\")+ COUNTIF(D31:Q31,\"خ\")","v":0},{"$f":"COUNTIF(D32:Q32,\"ص\") + COUNTIF(D32:Q32,\"م\")","v":0},null,0]
[24,null,null,null,null,null,null,null,null,null,null,null,null,null,null,null,null,{"$f":"R32","v":0},{"$f":"COUNTIF(D33:Q33,\"ص\") + COUNTIF(D33:Q33,\"م\") + COUNTIF(D33:Q33,\"ي\")","v":0},null,0]
[25,null,null,null,null,null,null,null,null,null,null,null,null,null,null,null,null,{"$f":"COUNTIF(D33:Q33,\"ح\") + COUNTIF(D33:Q33,\"إ\") + COUNTIF(D33:Q33,\"ث\")+ COUNTIF(D33:Q33,\"ر\")+ COUNTIF(D33:Q33,\"خ\")","v":0},{"$f":"COUNTIF(D34:Q34,\"ص\") + COUNTIF(D34:Q34,\"م\")","v":0},null,0]
[26,null,null,null,null,null,null,null,null,null,null,null,null,null,null,null,null,{"$f":"R34","v":0},{"$f":"COUNTIF(D35:Q35,\"ص\") + COUNTIF(D35:Q35,\"م\") + COUNTIF(D35:Q35,\"ي\")","v":0},null,0]
[27,null,null,null,null,null,null,null,null,null,null,null,null,null,null,null,null,{"$f":"COUNTIF(D35:Q35,\"ح\") + COUNTIF(D35:Q35,\"إ\") + COUNTIF(D35:Q35,\"ث\")+ COUNTIF(D35:Q35,\"ر\")+ COUNTIF(D35:Q35,\"خ\")","v":0},{"$f":"COUNTIF(D36:Q36,\"ص\") + COUNTIF(D36:Q36,\"م\")","v":0},null,0]
[28,null,null,null,null,null,null,null,null,null,null,null,null,null,null,null,null,{"$f":"R36","v":0},{"$f":"COUNTIF(D37:Q37,\"ص\") + COUNTIF(D37:Q37,\"م\") + COUNTIF(D37:Q37,\"ي\")","v":0},null,0]
[29,null,null,null,null,null,null,null,null,null,null,null,null,null,null,null,null,{"$f":"COUNTIF(D37:Q37,\"ح\") + COUNTIF(D37:Q37,\"إ\") + COUNTIF(D37:Q37,\"ث\")+ COUNTIF(D37:Q37,\"ر\")+ COUNTIF(D37:Q37,\"خ\")","v":0},{"$f":"COUNTIF(D38:Q38,\"ص\") + COUNTIF(D38:Q38,\"م\")","v":0},null,0]
[30,null,null,null,null,null,null,null,null,null,null,null,null,null,null,null,null,{"$f":"R38","v":0},{"$f":"COUNTIF(D39:Q39,\"ص\") + COUNTIF(D39:Q39,\"م\") + COUNTIF(D39:Q39,\"ي\")","v":0},null,0]
[31,null,null,null,null,null,null,null,null,null,null,null,null,null,null,null,null,{"$f":"COUNTIF(D39:Q39,\"ح\") + COUNTIF(D39:Q39,\"إ\") + COUNTIF(D39:Q39,\"ث\")+ COUNTIF(D39:Q39,\"ر\")+ COUNTIF(D39:Q39,\"خ\")","v":0},{"$f":"COUNTIF(D40:Q40,\"ص\") + COUNTIF(D40:Q40,\"م\")","v":0},null,0]
[32,null,null,null,null,null,null,null,null,null,null,null,null,null,null,null,null,{"$f":"R40","v":0},{"$f":"COUNTIF(D41:Q41,\"ص\") + COUNTIF(D41:Q41,\"م\") + COUNTIF(D41:Q41,\"ي\")","v":0},null,0]
[33,null,null,null,null,null,null,null,null,null,null,null,null,null,null,null,null,{"$f":"COUNTIF(D41:Q41,\"ح\") + COUNTIF(D41:Q41,\"إ\") + COUNTIF(D41:Q41,\"ث\")+ COUNTIF(D41:Q41,\"ر\")+ COUNTIF(D41:Q41,\"خ\")","v":0},{"$f":"COUNTIF(D42:Q42,\"ص\") + COUNTIF(D42:Q42,\"م\")","v":0},null,0]
[34,null,null,null,null,null,null,null,null,null,null,null,null,null,null,null,null,{"$f":"R42","v":0},{"$f":"COUNTIF(D43:Q43,\"ص\") + COUNTIF(D43:Q43,\"م\") + COUNTIF(D43:Q43,\"ي\")","v":0},null,0]
[35,null,null,null,null,null,null,null,null,null,null,null,null,null,null,null,null,{"$f":"COUNTIF(D43:Q43,\"ح\") + COUNTIF(D43:Q43,\"إ\") + COUNTIF(D43:Q43,\"ث\")+ COUNTIF(D43:Q43,\"ر\")+ COUNTIF(D43:Q43,\"خ\")","v":0},{"$f":"COUNTIF(D44:Q44,\"ص\") + COUNTIF(D44:Q44,\"م\")","v":0},null,0]
[36,null,null,null,null,null,null,null,null,null,null,null,null,null,null,null,null,{"$f":"R44","v":0},{"$f":"COUNTIF(D45:Q45,\"ص\") + COUNTIF(D45:Q45,\"م\") + COUNTIF(D45:Q45,\"ي\")","v":0},null,0]
[37,null,null,null,null,null,null,null,null,null,null,null,null,null,null,null,null,{"$f":"COUNTIF(D45:Q45,\"ح\") + COUNTIF(D45:Q45,\"إ\") + COUNTIF(D45:Q45,\"ث\")+ COUNTIF(D45:Q45,\"ر\")+ COUNTIF(D45:Q45,\"خ\")","v":0},{"$f":"COUNTIF(D46:Q46,\"ص\") + COUNTIF(D46:Q46,\"م\")","v":0},null,0]
[38,null,null,null,null,null,null,null,null,null,null,null,null,null,null,null,null,{"$f":"R46","v":0},{"$f":"COUNTIF(D47:Q47,\"ص\") + COUNTIF(D47:Q47,\"م\") + COUNTIF(D47:Q47,\"ي\")","v":0},null,0]
[39,null,null,null,null,null,null,null,null,null,null,null,null,null,null,null,null,{"$f":"COUNTIF(D47:Q47,\"ح\") + COUNTIF(D47:Q47,\"إ\") + COUNTIF(D47:Q47,\"ث\")+ COUNTIF(D47:Q47,\"ر\")+ COUNTIF(D47:Q47,\"خ\")","v":0},{"$f":"COUNTIF(D48:Q48,\"ص\") + COUNTIF(D48:Q48,\"م\")","v":0},null,0]
[40,null,null,null,null,null,null,null,null,null,null,null,null,null,null,null,null,{"$f":"R48","v":0},{"$f":"COUNTIF(D49:Q49,\"ص\") + COUNTIF(D49:Q49,\"م\") + COUNTIF(D49:Q49,\"ي\")","v":0},null,0]
[41,null,null,null,null,null,null,null,null,null,null,null,null,null,null,null,null,{"$f":"COUNTIF(D49:Q49,\"ح\") + COUNTIF(D49:Q49,\"إ\") + COUNTIF(D49:Q49,\"ث\")+ COUNTIF(D49:Q49,\"ر\")+ COUNTIF(D49:Q49,\"خ\")","v":0},{"$f":"COUNTIF(D50:Q50,\"ص\") + COUNTIF(D50:Q50,\"م\")","v":0},null,0]
[42,null,null,null,null,null,null,null,null,null,null,null,null,null,null,null,null,{"$f":"R50","v":0},{"$f":"COUNTIF(D51:Q51,\"ص\") + COUNTIF(D51:Q51,\"م\") + COUNTIF(D51:Q51,\"ي\")","v":0},null,0]
[43,null,null,null,null,null,null,null,null,null,null,null,null,null,null,null,null,{"$f":"COUNTIF(D51:Q51,\"ح\") + COUNTIF(D51:Q51,\"إ\") + COUNTIF(D51:Q51,\"ث\")+ COUNTIF(D51:Q51,\"ر\")+ COUNTIF(D51:Q51,\"خ\")","v":0},{"$f":"COUNTIF(D52:Q52,\"ص\") + COUNTIF(D52:Q52,\"م\")","v":0},null,0]
[44,null,null,null,null,null,null,null,null,null,null,null,null,null,null,null,null,{"$f":"R52","v":0},{"$f":"COUNTIF(D53:Q53,\"ص\") + COUNTIF(D53:Q53,\"م\") + COUNTIF(D53:Q53,\"ي\")","v":0},null,0]
[45,null,null,null,null,null,null,null,null,null,null,null,null,null,null,null,null,{"$f":"COUNTIF(D53:Q53,\"ح\") + COUNTIF(D53:Q53,\"إ\") + COUNTIF(D53:Q53,\"ث\")+ COUNTIF(D53:Q53,\"ر\")+ COUNTIF(D53:Q53,\"خ\")","v":0},{"$f":"COUNTIF(D54:Q54,\"ص\") + COUNTIF(D54:Q54,\"م\")","v":0},null,0]
[46,null,null,null,null,null,null,null,null,null,null,null,null,null,null,null,null,{"$f":"R54","v":0},{"$f":"COUNTIF(D55:Q55,\"ص\") + COUNTIF(D55:Q55,\"م\") + COUNTIF(D55:Q55,\"ي\")","v":0},null,0]
[47,null,null,null,null,null,null,null,null,null,null,null,null,null,null,null,null,{"$f":"COUNTIF(D55:Q55,\"ح\") + COUNTIF(D55:Q55,\"إ\") + COUNTIF(D55:Q55,\"ث\")+ COUNTIF(D55:Q55,\"ر\")+ COUNTIF(D55:Q55,\"خ\")","v":0},{"$f":"COUNTIF(D56:Q56,\"ص\") + COUNTIF(D56:Q56,\"م\")","v":0},null,0]
[48,null,null,null,null,null,null,null,null,null,null,null,null,null,null,null,null,{"$f":"R56","v":0},{"$f":"COUNTIF(D57:Q57,\"ص\") + COUNTIF(D57:Q57,\"م\") + COUNTIF(D57:Q57,\"ي\")","v":0},null,0]
[49,null,null,null,null,null,null,null,null,null,null,null,null,null,null,null,null,{"$f":"COUNTIF(D57:Q57,\"ح\") + COUNTIF(D57:Q57,\"إ\") + COUNTIF(D57:Q57,\"ث\")+ COUNTIF(D57:Q57,\"ر\")+ COUNTIF(D57:Q57,\"خ\")","v":0},{"$f":"COUNTIF(D58:Q58,\"ص\") + COUNTIF(D58:Q58,\"م\")","v":0},null,0]
[50,null,null,null,null,null,null,null,null,null,null,null,null,null,null,null,null,{"$f":"R58","v":0},{"$f":"COUNTIF(D59:Q59,\"ص\") + COUNTIF(D59:Q59,\"م\") + COUNTIF(D59:Q59,\"ي\")","v":0},null,0]
[51,null,null,null,null,null,null,null,null,null,null,null,null,null,null,null,null,{"$f":"COUNTIF(D59:Q59,\"ح\") + COUNTIF(D59:Q59,\"إ\") + COUNTIF(D59:Q59,\"ث\")+ COUNTIF(D59:Q59,\"ر\")+ COUNTIF(D59:Q59,\"خ\")","v":0},{"$f":"COUNTIF(D60:Q60,\"ص\") + COUNTIF(D60:Q60,\"م\")","v":0},null,0]
[52,null,null,null,null,null,null,null,null,null,null,null,null,null,null,null,null,{"$f":"R60","v":0},{"$f":"COUNTIF(D61:Q61,\"ص\") + COUNTIF(D61:Q61,\"م\") + COUNTIF(D61:Q61,\"ي\")","v":0},null,0]
[53,null,null,null,null,null,null,null,null,null,null,null,null,null,null,null,null,{"$f":"COUNTIF(D61:Q61,\"ح\") + COUNTIF(D61:Q61,\"إ\") + COUNTIF(D61:Q61,\"ث\")+ COUNTIF(D61:Q61,\"ر\")+ COUNTIF(D61:Q61,\"خ\")","v":0},{"$f":"COUNTIF(D62:Q62,\"ص\") + COUNTIF(D62:Q62,\"م\")","v":0},null,0]
[54,null,null,null,null,null,null,null,null,null,null,null,null,null,null,null,null,{"$f":"R62","v":0},{"$f":"COUNTIF(D63:Q63,\"ص\") + COUNTIF(D63:Q63,\"م\") + COUNTIF(D63:Q63,\"ي\")","v":0},null,0]
[55,null,null,null,null,null,null,null,null,null,null,null,null,null,null,null,null,{"$f":"COUNTIF(D63:Q63,\"ح\") + COUNTIF(D63:Q63,\"إ\") + COUNTIF(D63:Q63,\"ث\")+ COUNTIF(D63:Q63,\"ر\")+ COUNTIF(D63:Q63,\"خ\")","v":0},{"$f":"COUNTIF(D64:Q64,\"ص\") + COUNTIF(D64:Q64,\"م\")","v":0},null,0]
[56,null,null,null,null,null,null,null,null,null,null,null,null,null,null,null,null,{"$f":"R64","v":0},{"$f":"COUNTIF(D65:Q65,\"ص\") + COUNTIF(D65:Q65,\"م\") + COUNTIF(D65:Q65,\"ي\")","v":0},null,0]
[57,null,null,null,null,null,null,null,null,null,null,null,null,null,null,null,null,{"$f":"COUNTIF(D65:Q65,\"ح\") + COUNTIF(D65:Q65,\"إ\") + COUNTIF(D65:Q65,\"ث\")+ COUNTIF(D65:Q65,\"ر\")+ COUNTIF(D65:Q65,\"خ\")","v":0},{"$f":"COUNTIF(D66:Q66,\"ص\") + COUNTIF(D66:Q66,\"م\")","v":0},null,0]
[58,null,null,null,null,null,null,null,null,null,null,null,null,null,null,null,null,{"$f":"R66","v":0},{"$f":"COUNTIF(D67:Q67,\"ص\") + COUNTIF(D67:Q67,\"م\") + COUNTIF(D67:Q67,\"ي\")","v":0},null,0]
[59,null,null,null,null,null,null,null,null,null,null,null,null,null,null,null,null,{"$f":"COUNTIF(D67:Q67,\"ح\") + COUNTIF(D67:Q67,\"إ\") + COUNTIF(D67:Q67,\"ث\")+ COUNTIF(D67:Q67,\"ر\")+ COUNTIF(D67:Q67,\"خ\")","v":0},{"$f":"COUNTIF(D68:Q68,\"ص\") + COUNTIF(D68:Q68,\"م\")","v":0},null,0]
[60,null,null,null,null,null,null,null,null,null,null,null,null,null,null,null,null,{"$f":"R68","v":0},{"$f":"COUNTIF(D69:Q69,\"ص\") + COUNTIF(D69:Q69,\"م\") + COUNTIF(D69:Q69,\"ي\")","v":0},null,0]
[61,null,null,null,null,null,null,null,null,null,null,null,null,null,null,null,null,{"$f":"COUNTIF(D69:Q69,\"ح\") + COUNTIF(D69:Q69,\"إ\") + COUNTIF(D69:Q69,\"ث\")+ COUNTIF(D69:Q69,\"ر\")+ COUNTIF(D69:Q69,\"خ\")","v":0},{"$f":"COUNTIF(D70:Q70,\"ص\") + COUNTIF(D70:Q70,\"م\")","v":0},null,0]
[62,{"$f":"'[1]قائمة التلاميد'!B23","v":0},null,null,null,null,null,null,null,null,null,null,null,null,null,null,null,{"$f":"R70","v":0},{"$f":"COUNTIF(D71:Q71,\"ص\") + COUNTIF(D71:Q71,\"م\") + COUNTIF(D71:Q71,\"ي\")","v":0},null,0]
[63,{"$f":"'[1]قائمة التلاميد'!B24","v":0},null,null,null,null,null,null,null,null,null,null,null,null,null,null,null,{"$f":"COUNTIF(D71:Q71,\"ح\") + COUNTIF(D71:Q71,\"إ\") + COUNTIF(D71:Q71,\"ث\")+ COUNTIF(D71:Q71,\"ر\")+ COUNTIF(D71:Q71,\"خ\")","v":0},{"$f":"COUNTIF(D72:Q72,\"ص\") + COUNTIF(D72:Q72,\"م\")","v":0},null,0]
[64,{"$f":"'[1]قائمة التلاميد'!B25","v":0},null,null,null,null,null,null,null,null,null,null,null,null,null,null,null,{"$f":"R72","v":0},{"$f":"COUNTIF(D73:Q73,\"ص\") + COUNTIF(D73:Q73,\"م\") + COUNTIF(D73:Q73,\"ي\")","v":0},null,0]
[65,{"$f":"'[1]قائمة التلاميد'!B26","v":0},null,null,null,null,null,null,null,null,null,null,null,null,null,null,null,{"$f":"COUNTIF(D73:Q73,\"ح\") + COUNTIF(D73:Q73,\"إ\") + COUNTIF(D73:Q73,\"ث\")+ COUNTIF(D73:Q73,\"ر\")+ COUNTIF(D73:Q73,\"خ\")","v":0},{"$f":"COUNTIF(D74:Q74,\"ص\") + COUNTIF(D74:Q74,\"م\")","v":0},null,0]
[66,{"$f":"'[1]قائمة التلاميد'!B27","v":0},null,null,null,null,null,null,null,null,null,null,null,null,null,null,null,{"$f":"R74","v":0},{"$f":"COUNTIF(D75:Q75,\"ص\") + COUNTIF(D75:Q75,\"م\") + COUNTIF(D75:Q75,\"ي\")","v":0},null,0]
[67,{"$f":"'[1]قائمة التلاميد'!B28","v":0},null,null,null,null,null,null,null,null,null,null,null,null,null,null,null,{"$f":"COUNTIF(D75:Q75,\"ح\") + COUNTIF(D75:Q75,\"إ\") + COUNTIF(D75:Q75,\"ث\")+ COUNTIF(D75:Q75,\"ر\")+ COUNTIF(D75:Q75,\"خ\")","v":0},{"$f":"COUNTIF(D76:Q76,\"ص\") + COUNTIF(D76:Q76,\"م\")","v":0},null,{"$f":"S76/2","v":0}]
[68,{"$f":"'[1]قائمة التلاميد'!B29","v":0},null,null,null,null,null,null,null,null,null,null,null,null,null,null,null,{"$f":"R76","v":0},{"$f":"COUNTIF(D77:Q77,\"ص\") + COUNTIF(D77:Q77,\"م\") + COUNTIF(D77:Q77,\"ي\")","v":0},null,0]
[69,{"$f":"'[1]قائمة التلاميد'!B30","v":0},null,null,null,null,null,null,null,null,null,null,null,null,null,null,null,{"$f":"COUNTIF(D77:Q77,\"ح\") + COUNTIF(D77:Q77,\"إ\") + COUNTIF(D77:Q77,\"ث\")+ COUNTIF(D77:Q77,\"ر\")+ COUNTIF(D77:Q77,\"خ\")","v":0},{"$f":"COUNTIF(D78:Q78,\"ص\") + COUNTIF(D78:Q78,\"م\")","v":0},null,0]
[70,{"$f":"'[1]قائمة التلاميد'!B31","v":0},null,null,null,null,null,null,null,null,null,null,null,null,null,null,null,{"$f":"R78","v":0},{"$f":"COUNTIF(D79:Q79,\"ص\") + COUNTIF(D79:Q79,\"م\") + COUNTIF(D79:Q79,\"ي\")","v":0},null,0]
[71,{"$f":"'[1]قائمة التلاميد'!B32","v":0},null,null,null,null,null,null,null,null,null,null,null,null,null,null,null,{"$f":"COUNTIF(D79:Q79,\"ح\") + COUNTIF(D79:Q79,\"إ\") + COUNTIF(D79:Q79,\"ث\")+ COUNTIF(D79:Q79,\"ر\")+ COUNTIF(D79:Q79,\"خ\")","v":0},{"$f":"COUNTIF(D80:Q80,\"ص\") + COUNTIF(D80:Q80,\"م\")","v":0},null,0]
[72,{"$f":"'[1]قائمة التلاميد'!B33","v":0},null,null,null,null,null,null,null,null,null,null,null,null,null,null,null,{"$f":"R80","v":0},{"$f":"COUNTIF(D81:Q81,\"ص\") + COUNTIF(D81:Q81,\"م\") + COUNTIF(D81:Q81,\"ي\")","v":0},null,0]
[73,{"$f":"'[1]قائمة التلاميد'!B34","v":0},null,null,null,null,null,null,null,null,null,null,null,null,null,null,null,{"$f":"COUNTIF(D81:Q81,\"ح\") + COUNTIF(D81:Q81,\"إ\") + COUNTIF(D81:Q81,\"ث\")+ COUNTIF(D81:Q81,\"ر\")+ COUNTIF(D81:Q81,\"خ\")","v":0},{"$f":"COUNTIF(D82:Q82,\"ص\") + COUNTIF(D82:Q82,\"م\")","v":0},null,0]
[74,{"$f":"'[1]قائمة التلاميد'!B35","v":0},null,null,null,null,null,null,null,null,null,null,null,null,null,null,null,{"$f":"R82","v":0},{"$f":"COUNTIF(D83:Q83,\"ص\") + COUNTIF(D83:Q83,\"م\") + COUNTIF(D83:Q83,\"ي\")","v":0},null,0]
[75,{"$f":"'[1]قائمة التلاميد'!B36","v":0},null,null,null,null,null,null,null,null,null,null,null,null,null,null,null,{"$f":"COUNTIF(D83:Q83,\"ح\") + COUNTIF(D83:Q83,\"إ\") + COUNTIF(D83:Q83,\"ث\")+ COUNTIF(D83:Q83,\"ر\")+ COUNTIF(D83:Q83,\"خ\")","v":0},{"$f":"COUNTIF(D84:Q84,\"ص\") + COUNTIF(D84:Q84,\"م\")","v":0},null,0]
[76,{"$f":"'[1]قائمة التلاميد'!B37","v":0},null,null,null,null,null,null,null,null,null,null,null,null,null,null,null,{"$f":"R84","v":0},{"$f":"COUNTIF(D85:Q85,\"ص\") + COUNTIF(D85:Q85,\"م\") + COUNTIF(D85:Q85,\"ي\")","v":0},null,0]
[77,{"$f":"'[1]قائمة التلاميد'!B38","v":0},null,null,null,null,null,null,null,null,null,null,null,null,null,null,null,{"$f":"COUNTIF(D85:Q85,\"ح\") + COUNTIF(D85:Q85,\"إ\") + COUNTIF(D85:Q85,\"ث\")+ COUNTIF(D85:Q85,\"ر\")+ COUNTIF(D85:Q85,\"خ\")","v":0},{"$f":"COUNTIF(D86:Q86,\"ص\") + COUNTIF(D86:Q86,\"م\")","v":0},null,0]
[78,{"$f":"'[1]قائمة التلاميد'!B39","v":0},null,null,null,null,null,null,null,null,null,null,null,null,null,null,null,{"$f":"R86","v":0},{"$f":"COUNTIF(D87:Q87,\"ص\") + COUNTIF(D87:Q87,\"م\") + COUNTIF(D87:Q87,\"ي\")","v":0},null,0]
[79,{"$f":"'[1]قائمة التلاميد'!B40","v":0},null,null,null,null,null,null,null,null,null,null,null,null,null,null,null,{"$f":"COUNTIF(D87:Q87,\"ح\") + COUNTIF(D87:Q87,\"إ\") + COUNTIF(D87:Q87,\"ث\")+ COUNTIF(D87:Q87,\"ر\")+ COUNTIF(D87:Q87,\"خ\")","v":0},{"$f":"COUNTIF(D88:Q88,\"ص\") + COUNTIF(D88:Q88,\"م\")","v":0},null,0]
[80,{"$f":"'[1]قائمة التلاميد'!B41","v":0},null,null,null,null,null,null,null,null,null,null,null,null,null,null,null,{"$f":"R88","v":0},{"$f":"COUNTIF(D89:Q89,\"ص\") + COUNTIF(D89:Q89,\"م\") + COUNTIF(D89:Q89,\"ي\")","v":0},null,0]
[81,{"$f":"'[1]قائمة التلاميد'!B42","v":0},null,null,null,null,null,null,null,null,null,null,null,null,null,null,null,{"$f":"COUNTIF(D89:Q89,\"ح\") + COUNTIF(D89:Q89,\"إ\") + COUNTIF(D89:Q89,\"ث\")+ COUNTIF(D89:Q89,\"ر\")+ COUNTIF(D89:Q89,\"خ\")","v":0},{"$f":"COUNTIF(D90:Q90,\"ص\") + COUNTIF(D90:Q90,\"م\")","v":0},null,0]
[82,{"$f":"'[1]قائمة التلاميد'!B43","v":0},null,null,null,null,null,null,null,null,null,null,null,null,null,null,null,{"$f":"R90","v":0},{"$f":"COUNTIF(D91:Q91,\"ص\") + COUNTIF(D91:Q91,\"م\") + COUNTIF(D91:Q91,\"ي\")","v":0},null,0]
[83,{"$f":"'[1]قائمة التلاميد'!B44","v":0},null,null,null,null,null,null,null,null,null,null,null,null,null,null,null,{"$f":"COUNTIF(D91:Q91,\"ح\") + COUNTIF(D91:Q91,\"إ\") + COUNTIF(D91:Q91,\"ث\")+ COUNTIF(D91:Q91,\"ر\")+ COUNTIF(D91:Q91,\"خ\")","v":0},{"$f":"COUNTIF(D92:Q92,\"ص\") + COUNTIF(D92:Q92,\"م\")","v":0},null,0]
[84,{"$f":"'[1]قائمة التلاميد'!B45","v":0},null,null,null,null,null,null,null,null,null,null,null,null,null,null,null,{"$f":"R92","v":0},{"$f":"COUNTIF(D93:Q93,\"ص\") + COUNTIF(D93:Q93,\"م\") + COUNTIF(D93:Q93,\"ي\")","v":0},null,0]
[85,{"$f":"'[1]قائمة التلاميد'!B46","v":0},null,null,null,null,null,null,null,null,null,null,null,null,null,null,null,{"$f":"COUNTIF(D93:Q93,\"ح\") + COUNTIF(D93:Q93,\"إ\") + COUNTIF(D93:Q93,\"ث\")+ COUNTIF(D93:Q93,\"ر\")+ COUNTIF(D93:Q93,\"خ\")","v":0},{"$f":"COUNTIF(D94:Q94,\"ص\") + COUNTIF(D94:Q94,\"م\")","v":0},null,0]
[86,{"$f":"'[1]قائمة التلاميد'!B47","v":0},null,null,null,null,null,null,null,null,null,null,null,null,null,null,null,{"$f":"R94","v":0},{"$f":"COUNTIF(D95:Q95,\"ص\") + COUNTIF(D95:Q95,\"م\") + COUNTIF(D95:Q95,\"ي\")","v":0},null,0]
[87,{"$f":"'[1]قائمة التلاميد'!B48","v":0},null,null,null,null,null,null,null,null,null,null,null,null,null,null,null,{"$f":"COUNTIF(D95:Q95,\"ح\") + COUNTIF(D95:Q95,\"إ\") + COUNTIF(D95:Q95,\"ث\")+ COUNTIF(D95:Q95,\"ر\")+ COUNTIF(D95:Q95,\"خ\")","v":0},{"$f":"COUNTIF(D96:Q96,\"ص\") + COUNTIF(D96:Q96,\"م\")","v":0},null,0]
[88,{"$f":"'[1]قائمة التلاميد'!B49","v":0},null,null,null,null,null,null,null,null,null,null,null,null,null,null,null,{"$f":"R96","v":0},{"$f":"COUNTIF(D97:Q97,\"ص\") + COUNTIF(D97:Q97,\"م\") + COUNTIF(D97:Q97,\"ي\")","v":0},null,0]
[89,{"$f":"'[1]قائمة التلاميد'!B50","v":0},null,null,null,null,null,null,null,null,null,null,null,null,null,null,null,{"$f":"COUNTIF(D97:Q97,\"ح\") + COUNTIF(D97:Q97,\"إ\") + COUNTIF(D97:Q97,\"ث\")+ COUNTIF(D97:Q97,\"ر\")+ COUNTIF(D97:Q97,\"خ\")","v":0},{"$f":"COUNTIF(D98:Q98,\"ص\") + COUNTIF(D98:Q98,\"م\")","v":0},null,0]
[90,{"$f":"'[1]قائمة التلاميد'!B51","v":0},null,null,null,null,null,null,null,null,null,null,null,null,null,null,null,{"$f":"R98","v":0},{"$f":"COUNTIF(D99:Q99,\"ص\") + COUNTIF(D99:Q99,\"م\") + COUNTIF(D99:Q99,\"ي\")","v":0},null,0]
[91,{"$f":"'[1]قائمة التلاميد'!B52","v":0},null,null,null,null,null,null,null,null,null,null,null,null,null,null,null,{"$f":"COUNTIF(D99:Q99,\"ح\") + COUNTIF(D99:Q99,\"إ\") + COUNTIF(D99:Q99,\"ث\")+ COUNTIF(D99:Q99,\"ر\")+ COUNTIF(D99:Q99,\"خ\")","v":0},{"$f":"COUNTIF(D100:Q100,\"ص\") + COUNTIF(D100:Q100,\"م\")","v":0},null,0]
[92,{"$f":"'[1]قائمة التلاميد'!B53","v":0},null,null,null,null,null,null,null,null,null,null,null,null,null,null,null,{"$f":"R100","v":0},{"$f":"COUNTIF(D101:Q101,\"ص\") + COUNTIF(D101:Q101,\"م\") + COUNTIF(D101:Q101,\"ي\")","v":0},null,0]
[93,{"$f":"'[1]قائمة التلاميد'!B54","v":0},null,null,null,null,null,null,null,null,null,null,null,null,null,null,null,{"$f":"COUNTIF(D101:Q101,\"ح\") + COUNTIF(D101:Q101,\"إ\") + COUNTIF(D101:Q101,\"ث\")+ COUNTIF(D101:Q101,\"ر\")+ COUNTIF(D101:Q101,\"خ\")","v":0},{"$f":"COUNTIF(D102:Q102,\"ص\") + COUNTIF(D102:Q102,\"م\")","v":0},null,0]
[94,{"$f":"'[1]قائمة التلاميد'!B55","v":0},null,null,null,null,null,null,null,null,null,null,null,null,null,null,null,{"$f":"R102","v":0},{"$f":"COUNTIF(D103:Q103,\"ص\") + COUNTIF(D103:Q103,\"م\") + COUNTIF(D103:Q103,\"ي\")","v":0},null,0]
[95,{"$f":"'[1]قائمة التلاميد'!B56","v":0},null,null,null,null,null,null,null,null,null,null,null,null,null,null,null,{"$f":"COUNTIF(D103:Q103,\"ح\") + COUNTIF(D103:Q103,\"إ\") + COUNTIF(D103:Q103,\"ث\")+ COUNTIF(D103:Q103,\"ر\")+ COUNTIF(D103:Q103,\"خ\")","v":0},{"$f":"COUNTIF(D104:Q104,\"ص\") + COUNTIF(D104:Q104,\"م\")","v":0},null,0]
[96,{"$f":"'[1]قائمة التلاميد'!B57","v":0},null,null,null,null,null,null,null,null,null,null,null,null,null,null,null,{"$f":"R104","v":0},{"$f":"COUNTIF(D105:Q105,\"ص\") + COUNTIF(D105:Q105,\"م\") + COUNTIF(D105:Q105,\"ي\")","v":0},null,0]
[97,{"$f":"'[1]قائمة التلاميد'!B58","v":0},null,null,null,null,null,null,null,null,null,null,null,null,null,null,null,{"$f":"COUNTIF(D105:Q105,\"ح\") + COUNTIF(D105:Q105,\"إ\") + COUNTIF(D105:Q105,\"ث\")+ COUNTIF(D105:Q105,\"ر\")+ COUNTIF(D105:Q105,\"خ\")","v":0},{"$f":"COUNTIF(D106:Q106,\"ص\") + COUNTIF(D106:Q106,\"م\")","v":0},null,0]
[98,{"$f":"'[1]قائمة التلاميد'!B59","v":0},null,null,null,null,null,null,null,null,null,null,null,null,null,null,null,{"$f":"R106","v":0},{"$f":"COUNTIF(D107:Q107,\"ص\") + COUNTIF(D107:Q107,\"م\") + COUNTIF(D107:Q107,\"ي\")","v":0},null,0]
[99,{"$f":"'[1]قائمة التلاميد'!B60","v":0},null,null,null,null,null,null,null,null,null,null,null,null,null,null,null,{"$f":"COUNTIF(D107:Q107,\"ح\") + COUNTIF(D107:Q107,\"إ\") + COUNTIF(D107:Q107,\"ث\")+ COUNTIF(D107:Q107,\"ر\")+ COUNTIF(D107:Q107,\"خ\")","v":0},{"$f":"COUNTIF(D108:Q108,\"ص\") + COUNTIF(D108:Q108,\"م\")","v":0},null,0]
[100,{"$f":"'[1]قائمة التلاميد'!B61","v":0},null,null,null,null,null,null,null,null,null,null,null,null,null,null,null,{"$f":"R108","v":0},{"$f":"COUNTIF(D109:Q109,\"ص\") + COUNTIF(D109:Q109,\"م\") + COUNTIF(D109:Q109,\"ي\")","v":0},null,0]
[101,{"$f":"'[1]قائمة التلاميد'!B62","v":0},null,null,null,null,null,null,null,null,null,null,null,null,null,null,null,{"$f":"COUNTIF(D109:Q109,\"ح\") + COUNTIF(D109:Q109,\"إ\") + COUNTIF(D109:Q109,\"ث\")+ COUNTIF(D109:Q109,\"ر\")+ COUNTIF(D109:Q109,\"خ\")","v":0},{"$f":"COUNTIF(D110:Q110,\"ص\") + COUNTIF(D110:Q110,\"م\")","v":0},null,0]
[102,{"$f":"'[1]قائمة التلاميد'!B63","v":0},null,null,null,null,null,null,null,null,null,null,null,null,null,null,null,{"$f":"R110","v":0},{"$f":"COUNTIF(D111:Q111,\"ص\") + COUNTIF(D111:Q111,\"م\") + COUNTIF(D111:Q111,\"ي\")","v":0},null,0]
[103,{"$f":"'[1]قائمة التلاميد'!B64","v":0},null,null,null,null,null,null,null,null,null,null,null,null,null,null,null,{"$f":"COUNTIF(D111:Q111,\"ح\") + COUNTIF(D111:Q111,\"إ\") + COUNTIF(D111:Q111,\"ث\")+ COUNTIF(D111:Q111,\"ر\")+ COUNTIF(D111:Q111,\"خ\")","v":0},{"$f":"COUNTIF(D112:Q112,\"ص\") + COUNTIF(D112:Q112,\"م\")","v":0},null,0]
[104,{"$f":"'[1]قائمة التلاميد'!B65","v":0},null,null,null,null,null,null,null,null,null,null,null,null,null,null,null,{"$f":"R112","v":0},{"$f":"COUNTIF(D113:Q113,\"ص\") + COUNTIF(D113:Q113,\"م\") + COUNTIF(D113:Q113,\"ي\")","v":0},null,0]
[105,{"$f":"'[1]قائمة التلاميد'!B66","v":0},null,null,null,null,null,null,null,null,null,null,null,null,null,null,null,{"$f":"COUNTIF(D113:Q113,\"ح\") + COUNTIF(D113:Q113,\"إ\") + COUNTIF(D113:Q113,\"ث\")+ COUNTIF(D113:Q113,\"ر\")+ COUNTIF(D113:Q113,\"خ\")","v":0},{"$f":"COUNTIF(D114:Q114,\"ص\") + COUNTIF(D114:Q114,\"م\")","v":0},null,0]
[106,{"$f":"'[1]قائمة التلاميد'!B67","v":0},null,null,null,null,null,null,null,null,null,null,null,null,null,null,null,{"$f":"R114","v":0},{"$f":"COUNTIF(D115:Q115,\"ص\") + COUNTIF(D115:Q115,\"م\") + COUNTIF(D115:Q115,\"ي\")","v":0},null,0]
[107,{"$f":"'[1]قائمة التلاميد'!B68","v":0},null,null,null,null,null,null,null,null,null,null,null,null,null,null,null,{"$f":"COUNTIF(D115:Q115,\"ح\") + COUNTIF(D115:Q115,\"إ\") + COUNTIF(D115:Q115,\"ث\")+ COUNTIF(D115:Q115,\"ر\")+ COUNTIF(D115:Q115,\"خ\")","v":0},{"$f":"COUNTIF(D116:Q116,\"ص\") + COUNTIF(D116:Q116,\"م\")","v":0},null,0]
[108,{"$f":"'[1]قائمة التلاميد'!B69","v":0},null,null,null,null,null,null,null,null,null,null,null,null,null,null,null,{"$f":"R116","v":0},{"$f":"COUNTIF(D117:Q117,\"ص\") + COUNTIF(D117:Q117,\"م\") + COUNTIF(D117:Q117,\"ي\")","v":0},null,0]
[109,{"$f":"'[1]قائمة التلاميد'!B70","v":0},null,null,null,null,null,null,null,null,null,null,null,null,null,null,null,{"$f":"COUNTIF(D117:Q117,\"ح\") + COUNTIF(D117:Q117,\"إ\") + COUNTIF(D117:Q117,\"ث\")+ COUNTIF(D117:Q117,\"ر\")+ COUNTIF(D117:Q117,\"خ\")","v":0},{"$f":"COUNTIF(D118:Q118,\"ص\") + COUNTIF(D118:Q118,\"م\")","v":0},null,0]
[110,{"$f":"'[1]قائمة التلاميد'!B71","v":0},null,null,null,null,null,null,null,null,null,null,null,null,null,null,null,{"$f":"R118","v":0},{"$f":"COUNTIF(D119:Q119,\"ص\") + COUNTIF(D119:Q119,\"م\") + COUNTIF(D119:Q119,\"ي\")","v":0},null,0]
[111,{"$f":"'[1]قائمة التلاميد'!B72","v":0},null,null,null,null,null,null,null,null,null,null,null,null,null,null,null,{"$f":"COUNTIF(D119:Q119,\"ح\") + COUNTIF(D119:Q119,\"إ\") + COUNTIF(D119:Q119,\"ث\")+ COUNTIF(D119:Q119,\"ر\")+ COUNTIF(D119:Q119,\"خ\")","v":0},{"$f":"COUNTIF(D120:Q120,\"ص\") + COUNTIF(D120:Q120,\"م\")","v":0},null,0]
[112,{"$f":"'[1]قائمة التلاميد'!B73","v":0},null,null,null,null,null,null,null,null,null,null,null,null,null,null,null,{"$f":"R120","v":0},{"$f":"COUNTIF(D121:Q121,\"ص\") + COUNTIF(D121:Q121,\"م\") + COUNTIF(D121:Q121,\"ي\")","v":0},null,0]
[113,{"$f":"'[1]قائمة التلاميد'!B74","v":0},null,null,null,null,null,null,null,null,null,null,null,null,null,null,null,{"$f":"COUNTIF(D121:Q121,\"ح\") + COUNTIF(D121:Q121,\"إ\") + COUNTIF(D121:Q121,\"ث\")+ COUNTIF(D121:Q121,\"ر\")+ COUNTIF(D121:Q121,\"خ\")","v":0},{"$f":"COUNTIF(D122:Q122,\"ص\") + COUNTIF(D122:Q122,\"م\")","v":0},null,0]
[114,{"$f":"'[1]قائمة التلاميد'!B75","v":0},null,null,null,null,null,null,null,null,null,null,null,null,null,null,null,{"$f":"R122","v":0},{"$f":"COUNTIF(D123:Q123,\"ص\") + COUNTIF(D123:Q123,\"م\") + COUNTIF(D123:Q123,\"ي\")","v":0},null,0]
[115,{"$f":"'[1]قائمة التلاميد'!B76","v":0},null,null,null,null,null,null,null,null,null,null,null,null,null,null,null,{"$f":"COUNTIF(D123:Q123,\"ح\") + COUNTIF(D123:Q123,\"إ\") + COUNTIF(D123:Q123,\"ث\")+ COUNTIF(D123:Q123,\"ر\")+ COUNTIF(D123:Q123,\"خ\")","v":0},{"$f":"COUNTIF(D124:Q124,\"ص\") + COUNTIF(D124:Q124,\"م\")","v":0},null,0]
[116,{"$f":"'[1]قائمة التلاميد'!B77","v":0},null,null,null,null,null,null,null,null,null,null,null,null,null,null,null,{"$f":"R124","v":0},{"$f":"COUNTIF(D125:Q125,\"ص\") + COUNTIF(D125:Q125,\"م\") + COUNTIF(D125:Q125,\"ي\")","v":0},null,0]
[117,{"$f":"'[1]قائمة التلاميد'!B78","v":0},null,null,null,null,null,null,null,null,null,null,null,null,null,null,null,{"$f":"COUNTIF(D125:Q125,\"ح\") + COUNTIF(D125:Q125,\"إ\") + COUNTIF(D125:Q125,\"ث\")+ COUNTIF(D125:Q125,\"ر\")+ COUNTIF(D125:Q125,\"خ\")","v":0},{"$f":"COUNTIF(D126:Q126,\"ص\") + COUNTIF(D126:Q126,\"م\")","v":0},null,0]
[118,{"$f":"'[1]قائمة التلاميد'!B79","v":0},null,null,null,null,null,null,null,null,null,null,null,null,null,null,null,{"$f":"R126","v":0},{"$f":"COUNTIF(D127:Q127,\"ص\") + COUNTIF(D127:Q127,\"م\") + COUNTIF(D127:Q127,\"ي\")","v":0},null,0]
[119,{"$f":"'[1]قائمة التلاميد'!B80","v":0},null,null,null,null,null,null,null,null,null,null,null,null,null,null,null,{"$f":"COUNTIF(D127:Q127,\"ح\") + COUNTIF(D127:Q127,\"إ\") + COUNTIF(D127:Q127,\"ث\")+ COUNTIF(D127:Q127,\"ر\")+ COUNTIF(D127:Q127,\"خ\")","v":0},{"$f":"COUNTIF(D128:Q128,\"ص\") + COUNTIF(D128:Q128,\"م\")","v":0},null,0]
[120,{"$f":"'[1]قائمة التلاميد'!B81","v":0},null,null,null,null,null,null,null,null,null,null,null,null,null,null,null,{"$f":"R128","v":0},{"$f":"COUNTIF(D129:Q129,\"ص\") + COUNTIF(D129:Q129,\"م\") + COUNTIF(D129:Q129,\"ي\")","v":0},null,0]
[121,{"$f":"'[1]قائمة التلاميد'!B82","v":0},null,null,null,null,null,null,null,null,null,null,null,null,null,null,null,{"$f":"COUNTIF(D129:Q129,\"ح\") + COUNTIF(D129:Q129,\"إ\") + COUNTIF(D129:Q129,\"ث\")+ COUNTIF(D129:Q129,\"ر\")+ COUNTIF(D129:Q129,\"خ\")","v":0},{"$f":"COUNTIF(D130:Q130,\"ص\") + COUNTIF(D130:Q130,\"م\")","v":0},null,0]
[122,{"$f":"'[1]قائمة التلاميد'!B83","v":0},null,null,null,null,null,null,null,null,null,null,null,null,null,null,null,{"$f":"R130","v":0},{"$f":"COUNTIF(D131:Q131,\"ص\") + COUNTIF(D131:Q131,\"م\") + COUNTIF(D131:Q131,\"ي\")","v":0},null,0]
[123,{"$f":"'[1]قائمة التلاميد'!B84","v":0},null,null,null,null,null,null,null,null,null,null,null,null,null,null,null,{"$f":"COUNTIF(D131:Q131,\"ح\") + COUNTIF(D131:Q131,\"إ\") + COUNTIF(D131:Q131,\"ث\")+ COUNTIF(D131:Q131,\"ر\")+ COUNTIF(D131:Q131,\"خ\")","v":0},{"$f":"COUNTIF(D132:Q132,\"ص\") + COUNTIF(D132:Q132,\"م\")","v":0},null,0]
[124,{"$f":"'[1]قائمة التلاميد'!B85","v":0},null,null,null,null,null,null,null,null,null,null,null,null,null,null,null,{"$f":"R132","v":0},{"$f":"COUNTIF(D133:Q133,\"ص\") + COUNTIF(D133:Q133,\"م\") + COUNTIF(D133:Q133,\"ي\")","v":0},null,0]
[125,{"$f":"'[1]قائمة التلاميد'!B86","v":0},null,null,null,null,null,null,null,null,null,null,null,null,null,null,null,{"$f":"COUNTIF(D133:Q133,\"ح\") + COUNTIF(D133:Q133,\"إ\") + COUNTIF(D133:Q133,\"ث\")+ COUNTIF(D133:Q133,\"ر\")+ COUNTIF(D133:Q133,\"خ\")","v":0},{"$f":"COUNTIF(D134:Q134,\"ص\") + COUNTIF(D134:Q134,\"م\")","v":0},null,0]
[126,{"$f":"'[1]قائمة التلاميد'!B87","v":0},null,null,null,null,null,null,null,null,null,null,null,null,null,null,null,{"$f":"R134","v":0},{"$f":"COUNTIF(D135:Q135,\"ص\") + COUNTIF(D135:Q135,\"م\") + COUNTIF(D135:Q135,\"ي\")","v":0},null,0]
[127,{"$f":"'[1]قائمة التلاميد'!B88","v":0},null,null,null,null,null,null,null,null,null,null,null,null,null,null,null,{"$f":"COUNTIF(D135:Q135,\"ح\") + COUNTIF(D135:Q135,\"إ\") + COUNTIF(D135:Q135,\"ث\")+ COUNTIF(D135:Q135,\"ر\")+ COUNTIF(D135:Q135,\"خ\")","v":0},{"$f":"COUNTIF(D136:Q136,\"ص\") + COUNTIF(D136:Q136,\"م\")","v":0},null,0]
[128,{"$f":"'[1]قائمة التلاميد'!B89","v":0},null,null,null,null,null,null,null,null,null,null,null,null,null,null,null,{"$f":"R136","v":0},{"$f":"COUNTIF(D137:Q137,\"ص\") + COUNTIF(D137:Q137,\"م\") + COUNTIF(D137:Q137,\"ي\")","v":0},null,0]
[129,{"$f":"'[1]قائمة التلاميد'!B90","v":0},null,null,null,null,null,null,null,null,null,null,null,null,null,null,null,{"$f":"COUNTIF(D137:Q137,\"ح\") + COUNTIF(D137:Q137,\"إ\") + COUNTIF(D137:Q137,\"ث\")+ COUNTIF(D137:Q137,\"ر\")+ COUNTIF(D137:Q137,\"خ\")","v":0},{"$f":"COUNTIF(D138:Q138,\"ص\") + COUNTIF(D138:Q138,\"م\")","v":0},null,0]
[130,{"$f":"'[1]قائمة التلاميد'!B91","v":0},null,null,null,null,null,null,null,null,null,null,null,null,null,null,null,{"$f":"R138","v":0},{"$f":"COUNTIF(D139:Q139,\"ص\") + COUNTIF(D139:Q139,\"م\") + COUNTIF(D139:Q139,\"ي\")","v":0},null,0]
[131,{"$f":"'[1]قائمة التلاميد'!B92","v":0},null,null,null,null,null,null,null,null,null,null,null,null,null,null,null,{"$f":"COUNTIF(D139:Q139,\"ح\") + COUNTIF(D139:Q139,\"إ\") + COUNTIF(D139:Q139,\"ث\")+ COUNTIF(D139:Q139,\"ر\")+ COUNTIF(D139:Q139,\"خ\")","v":0},{"$f":"COUNTIF(D140:Q140,\"ص\") + COUNTIF(D140:Q140,\"م\")","v":0},null,{"$f":"S140/2","v":0}]
[132,{"$f":"'[1]قائمة التلاميد'!B93","v":0},null,null,null,null,null,null,null,null,null,null,null,null,null,null,null,{"$f":"R140","v":0},{"$f":"COUNTIF(D141:Q141,\"ص\") + COUNTIF(D141:Q141,\"م\") + COUNTIF(D141:Q141,\"ي\")","v":0},null,0]
[133,{"$f":"'[1]قائمة التلاميد'!B94","v":0},null,null,null,null,null,null,null,null,null,null,null,null,null,null,null,{"$f":"COUNTIF(D141:Q141,\"ح\") + COUNTIF(D141:Q141,\"إ\") + COUNTIF(D141:Q141,\"ث\")+ COUNTIF(D141:Q141,\"ر\")+ COUNTIF(D141:Q141,\"خ\")","v":0},{"$f":"COUNTIF(D142:Q142,\"ص\") + COUNTIF(D142:Q142,\"م\")","v":0},null,0]
[134,{"$f":"'[1]قائمة التلاميد'!B95","v":0},null,null,null,null,null,null,null,null,null,null,null,null,null,null,null,{"$f":"R142","v":0},{"$f":"COUNTIF(D143:Q143,\"ص\") + COUNTIF(D143:Q143,\"م\") + COUNTIF(D143:Q143,\"ي\")","v":0},null,0]
[135,{"$f":"'[1]قائمة التلاميد'!B96","v":0},null,null,null,null,null,null,null,null,null,null,null,null,null,null,null,{"$f":"COUNTIF(D143:Q143,\"ح\") + COUNTIF(D143:Q143,\"إ\") + COUNTIF(D143:Q143,\"ث\")+ COUNTIF(D143:Q143,\"ر\")+ COUNTIF(D143:Q143,\"خ\")","v":0},{"$f":"COUNTIF(D144:Q144,\"ص\") + COUNTIF(D144:Q144,\"م\")","v":0},null,0]
[136,{"$f":"'[1]قائمة التلاميد'!B97","v":0},null,null,null,null,null,null,null,null,null,null,null,null,null,null,null,{"$f":"R144","v":0},{"$f":"COUNTIF(D145:Q145,\"ص\") + COUNTIF(D145:Q145,\"م\") + COUNTIF(D145:Q145,\"ي\")","v":0},null,0]
[137,{"$f":"'[1]قائمة التلاميد'!B98","v":0},null,null,null,null,null,null,null,null,null,null,null,null,null,null,null,{"$f":"COUNTIF(D145:Q145,\"ح\") + COUNTIF(D145:Q145,\"إ\") + COUNTIF(D145:Q145,\"ث\")+ COUNTIF(D145:Q145,\"ر\")+ COUNTIF(D145:Q145,\"خ\")","v":0},{"$f":"COUNTIF(D146:Q146,\"ص\") + COUNTIF(D146:Q146,\"م\")","v":0},null,0]
[138,{"$f":"'[1]قائمة التلاميد'!B99","v":0},null,null,null,null,null,null,null,null,null,null,null,null,null,null,null,{"$f":"R146","v":0},{"$f":"COUNTIF(D147:Q147,\"ص\") + COUNTIF(D147:Q147,\"م\") + COUNTIF(D147:Q147,\"ي\")","v":0},null,0]
[139,{"$f":"'[1]قائمة التلاميد'!B100","v":0},null,null,null,null,null,null,null,null,null,null,null,null,null,null,null,{"$f":"COUNTIF(D147:Q147,\"ح\") + COUNTIF(D147:Q147,\"إ\") + COUNTIF(D147:Q147,\"ث\")+ COUNTIF(D147:Q147,\"ر\")+ COUNTIF(D147:Q147,\"خ\")","v":0},{"$f":"COUNTIF(D148:Q148,\"ص\") + COUNTIF(D148:Q148,\"م\")","v":0},null,0]
[140,{"$f":"'[1]قائمة التلاميد'!B101","v":0},null,null,null,null,null,null,null,null,null,null,null,null,null,null,null,{"$f":"R148","v":0},{"$f":"COUNTIF(D149:Q149,\"ص\") + COUNTIF(D149:Q149,\"م\") + COUNTIF(D149:Q149,\"ي\")","v":0},null,0]
[141,{"$f":"'[1]قائمة التلاميد'!B102","v":0},null,null,null,null,null,null,null,null,null,null,null,null,null,null,null,{"$f":"COUNTIF(D149:Q149,\"ح\") + COUNTIF(D149:Q149,\"إ\") + COUNTIF(D149:Q149,\"ث\")+ COUNTIF(D149:Q149,\"ر\")+ COUNTIF(D149:Q149,\"خ\")","v":0},{"$f":"COUNTIF(D150:Q150,\"ص\") + COUNTIF(D150:Q150,\"م\")","v":0},null,0]
[142,{"$f":"'[1]قائمة التلاميد'!B103","v":0},null,null,null,null,null,null,null,null,null,null,null,null,null,null,null,{"$f":"R150","v":0},{"$f":"COUNTIF(D151:Q151,\"ص\") + COUNTIF(D151:Q151,\"م\") + COUNTIF(D151:Q151,\"ي\")","v":0},null,0]
[143,{"$f":"'[1]قائمة التلاميد'!B104","v":0},null,null,null,null,null,null,null,null,null,null,null,null,null,null,null,{"$f":"COUNTIF(D151:Q151,\"ح\") + COUNTIF(D151:Q151,\"إ\") + COUNTIF(D151:Q151,\"ث\")+ COUNTIF(D151:Q151,\"ر\")+ COUNTIF(D151:Q151,\"خ\")","v":0},{"$f":"COUNTIF(D152:Q152,\"ص\") + COUNTIF(D152:Q152,\"م\")","v":0},null,0]
[144,{"$f":"'[1]قائمة التلاميد'!B105","v":0},null,null,null,null,null,null,null,null,null,null,null,null,null,null,null,{"$f":"R152","v":0},{"$f":"COUNTIF(D153:Q153,\"ص\") + COUNTIF(D153:Q153,\"م\") + COUNTIF(D153:Q153,\"ي\")","v":0},null,0]
[145,{"$f":"'[1]قائمة التلاميد'!B106","v":0},null,null,null,null,null,null,null,null,null,null,null,null,null,null,null,{"$f":"COUNTIF(D153:Q153,\"ح\") + COUNTIF(D153:Q153,\"إ\") + COUNTIF(D153:Q153,\"ث\")+ COUNTIF(D153:Q153,\"ر\")+ COUNTIF(D153:Q153,\"خ\")","v":0},{"$f":"COUNTIF(D154:Q154,\"ص\") + COUNTIF(D154:Q154,\"م\")","v":0},null,0]
[146,{"$f":"'[1]قائمة التلاميد'!B107","v":0},null,null,null,null,null,null,null,null,null,null,null,null,null,null,null,{"$f":"R154","v":0},{"$f":"COUNTIF(D155:Q155,\"ص\") + COUNTIF(D155:Q155,\"م\") + COUNTIF(D155:Q155,\"ي\")","v":0},null,0]
[147,{"$f":"'[1]قائمة التلاميد'!B108","v":0},null,null,null,null,null,null,null,null,null,null,null,null,null,null,null,{"$f":"COUNTIF(D155:Q155,\"ح\") + COUNTIF(D155:Q155,\"إ\") + COUNTIF(D155:Q155,\"ث\")+ COUNTIF(D155:Q155,\"ر\")+ COUNTIF(D155:Q155,\"خ\")","v":0},{"$f":"COUNTIF(D156:Q156,\"ص\") + COUNTIF(D156:Q156,\"م\")","v":0},null,0]
[148,{"$f":"'[1]قائمة التلاميد'!B109","v":0},null,null,null,null,null,null,null,null,null,null,null,null,null,null,null,{"$f":"R156","v":0},{"$f":"COUNTIF(D157:Q157,\"ص\") + COUNTIF(D157:Q157,\"م\") + COUNTIF(D157:Q157,\"ي\")","v":0},null,0]
[149,{"$f":"'[1]قائمة التلاميد'!B110","v":0},null,null,null,null,null,null,null,null,null,null,null,null,null,null,null,{"$f":"COUNTIF(D157:Q157,\"ح\") + COUNTIF(D157:Q157,\"إ\") + COUNTIF(D157:Q157,\"ث\")+ COUNTIF(D157:Q157,\"ر\")+ COUNTIF(D157:Q157,\"خ\")","v":0},{"$f":"COUNTIF(D158:Q158,\"ص\") + COUNTIF(D158:Q158,\"م\")","v":0},null,0]
[150,{"$f":"'[1]قائمة التلاميد'!B111","v":0},null,null,null,null,null,null,null,null,null,null,null,null,null,null,null,{"$f":"R158","v":0},{"$f":"COUNTIF(D159:Q159,\"ص\") + COUNTIF(D159:Q159,\"م\") + COUNTIF(D159:Q159,\"ي\")","v":0},null,0]
[151,{"$f":"'[1]قائمة التلاميد'!B112","v":0},null,null,null,null,null,null,null,null,null,null,null,null,null,null,null,null,null,null,0]
[152,{"$f":"'[1]قائمة التلاميد'!B113","v":0},null,null,null,null,null,null,null,null,null,null,null,null,null,null,null,null,null,null,0]
[153,{"$f":"'[1]قائمة التلاميد'!B114","v":0},null,null,null,null,null,null,null,null,null,null,null,null,null,null,null,null,null,null,0]
[154,{"$f":"'[1]قائمة التلاميد'!B115","v":0},null,null,null,null,null,null,null,null,null,null,null,null,null,null,null,null,null,null,0]
[155,{"$f":"'[1]قائمة التلاميد'!B116","v":0},null,null,null,null,null,null,null,null,null,null,null,null,null,null,null,null,null,null,0]
[156,{"$f":"'[1]قائمة التلاميد'!B117","v":0},null,null,null,null,null,null,null,null,null,null,null,null,null,null,null,null,null,null,0]
[157,{"$f":"'[1]قائمة التلاميد'!B118","v":0},null,null,null,null,null,null,null,null,null,null,null,null,null,null,null,null,null,null,0]
[158,{"$f":"'[1]قائمة التلاميد'!B119","v":0},null,null,null,null,null,null,null,null,null,null,null,null,null,null,null,null,null,null,0]
[159,{"$f":"'[1]قائمة التلاميد'!B120","v":0},null,null,null,null,null,null,null,null,null,null,null,null,null,null,null,null,null,null,0]
[160,{"$f":"'[1]قائمة التلاميد'!B121","v":0},null,null,null,null,null,null,null,null,null,null,null,null,null,null,null,null,null,null,0]
[161,{"$f":"'[1]قائمة التلاميد'!B122","v":0},null,null,null,null,null,null,null,null,null,null,null,null,null,null,null,null,null,null,0]
[162,{"$f":"'[1]قائمة التلاميد'!B123","v":0},null,null,null,null,null,null,null,null,null,null,null,null,null,null,null,null,null,null,0]
[163,{"$f":"'[1]قائمة التلاميد'!B124","v":0},null,null,null,null,null,null,null,null,null,null,null,null,null,null,null,null,null,null,0]
[164,{"$f":"'[1]قائمة التلاميد'!B125","v":0},null,null,null,null,null,null,null,null,null,null,null,null,null,null,null,null,null,null,0]
[165,{"$f":"'[1]قائمة التلاميد'!B126","v":0},null,null,null,null,null,null,null,null,null,null,null,null,null,null,null,null,null,null,0]
[166,{"$f":"'[1]قائمة التلاميد'!B127","v":0},null,null,null,null,null,null,null,null,null,null,null,null,null,null,null,null,null,null,0]
[167,{"$f":"'[1]قائمة التلاميد'!B128","v":0},null,null,null,null,null,null,null,null,null,null,null,null,null,null,null,null,null,null,0]
[168,{"$f":"'[1]قائمة التلاميد'!B129","v":0},null,null,null,null,null,null,null,null,null,null,null,null,null,null,null,null,null,null,0]
[169,{"$f":"'[1]قائمة التلاميد'!B130","v":0},null,null,null,null,null,null,null,null,null,null,null,null,null,null,null,null,null,null,0]
[170,{"$f":"'[1]قائمة التلاميد'!B131","v":0},null,null,null,null,null,null,null,null,null,null,null,null,null,null,null,null,null,null,0]
[171,{"$f":"'[1]قائمة التلاميد'!B132","v":0},null,null,null,null,null,null,null,null,null,null,null,null,null,null,null,null,null,null,0]
[172,{"$f":"'[1]قائمة التلاميد'!B133","v":0},null,null,null,null,null,null,null,null,null,null,null,null,null,null,null,null,null,null,0]
[173,{"$f":"'[1]قائمة التلاميد'!B134","v":0},null,null,null,null,null,null,null,null,null,null,null,null,null,null,null,null,null,null,0]
[174,{"$f":"'[1]قائمة التلاميد'!B135","v":0},null,null,null,null,null,null,null,null,null,null,null,null,null,null,null,null,null,null,0]
[175,{"$f":"'[1]قائمة التلاميد'!B136","v":0},null,null,null,null,null,null,null,null,null,null,null,null,null,null,null,null,null,null,0]
[176,{"$f":"'[1]قائمة التلاميد'!B137","v":0},null,null,null,null,null,null,null,null,null,null,null,null,null,null,null,null,null,null,0]
[177,{"$f":"'[1]قائمة التلاميد'!B138","v":0},null,null,null,null,null,null,null,null,null,null,null,null,null,null,null,null,null,null,0]
[178,{"$f":"'[1]قائمة التلاميد'!B139","v":0},null,null,null,null,null,null,null,null,null,null,null,null,null,null,null,null,null,null,0]
[179,{"$f":"'[1]قائمة التلاميد'!B140","v":0},null,null,null,null,null,null,null,null,null,null,null,null,null,null,null,null,null,null,0]
[180,{"$f":"'[1]قائمة التلاميد'!B141","v":0},null,null,null,null,null,null,null,null,null,null,null,null,null,null,null,null,null,null,0]
[181,{"$f":"'[1]قائمة التلاميد'!B142","v":0},null,null,null,null,null,null,null,null,null,null,null,null,null,null,null,null,null,null,0]
[182,{"$f":"'[1]قائمة التلاميد'!B143","v":0},null,null,null,null,null,null,null,null,null,null,null,null,null,null,null,null,null,null,0]
[183,{"$f":"'[1]قائمة التلاميد'!B144","v":0},null,null,null,null,null,null,null,null,null,null,null,null,null,null,null,null,null,null,0]
[184,{"$f":"'[1]قائمة التلاميد'!B145","v":0},null,null,null,null,null,null,null,null,null,null,null,null,null,null,null,null,null,null,0]
[185,{"$f":"'[1]قائمة التلاميد'!B146","v":0},null,null,null,null,null,null,null,null,null,null,null,null,null,null,null,null,null,null,0]
[186,{"$f":"'[1]قائمة التلاميد'!B147","v":0},null,null,null,null,null,null,null,null,null,null,null,null,null,null,null,null,null,null,0]
[187,{"$f":"'[1]قائمة التلاميد'!B148","v":0},null,null,null,null,null,null,null,null,null,null,null,null,null,null,null,null,null,null,0]
[188,{"$f":"'[1]قائمة التلاميد'!B149","v":0},null,null,null,null,null,null,null,null,null,null,null,null,null,null,null,null,null,null,0]
[189,{"$f":"'[1]قائمة التلاميد'!B150","v":0},null,null,null,null,null,null,null,null,null,null,null,null,null,null,null,null,null,null,0]
[190,{"$f":"'[1]قائمة التلاميد'!B151","v":0},null,null,null,null,null,null,null,null,null,null,null,null,null,null,null,null,null,null,0]
[191,{"$f":"'[1]قائمة التلاميد'!B152","v":0},null,null,null,null,null,null,null,null,null,null,null,null,null,null,null,null,null,null,0]
[192,{"$f":"'[1]قائمة التلاميد'!B153","v":0},null,null,null,null,null,null,null,null,null,null,null,null,null,null,null,null,null,null,0]
[193,{"$f":"'[1]قائمة التلاميد'!B154","v":0},null,null,null,null,null,null,null,null,null,null,null,null,null,null,null,null,null,null,0]
[194,{"$f":"'[1]قائمة التلاميد'!B155","v":0},null,null,null,null,null,null,null,null,null,null,null,null,null,null,null,null,null,null,0]
[195,{"$f":"'[1]قائمة التلاميد'!B156","v":0},null,null,null,null,null,null,null,null,null,null,null,null,null,null,null,null,null,null,{"$f":"S204/2","v":0}]
[196,{"$f":"'[1]قائمة التلاميد'!B157","v":0},null,null,null,null,null,null,null,null,null,null,null,null,null,null,null,null,null,null,0]
[197,{"$f":"'[1]قائمة التلاميد'!B158","v":0},null,null,null,null,null,null,null,null,null,null,null,null,null,null,null,null,null,null,0]
[198,{"$f":"'[1]قائمة التلاميد'!B159","v":0},null,null,null,null,null,null,null,null,null,null,null,null,null,null,null,null,null,null,0]
[199,{"$f":"'[1]قائمة التلاميد'!B160","v":0},null,null,null,null,null,null,null,null,null,null,null,null,null,null,null,null,null,null,0]
[200,{"$f":"'[1]قائمة التلاميد'!B161","v":0},null,null,null,null,null,null,null,null,null,null,null,null,null,null,null,null,null,null,0]

{"sheet":"ورقة1","index":1,"n_rows":0,"n_cols":0,"rows_kept":0,"cut":false,"hidden":false,"merged":[]}

{"sheet":"ورقة2","index":2,"n_rows":0,"n_cols":0,"rows_kept":0,"cut":false,"hidden":true,"merged":[]}

{"sheet":"ورقة3","index":3,"n_rows":0,"n_cols":0,"rows_kept":0,"cut":false,"hidden":true,"merged":[]}